fUST/lending_fUST_20250110
["ID","MTS","AMOUNT","RATE_DAILY","PERIOD"]
[348376989,1736482238961,-500.0,0.00022999,3]
[348376991,1736482238971,-515.80745849,0.00022999,3]
[348376993,1736482238981,-1670.18375533,0.00023,5]
[348376995,1736482238991,-110721.50238441,0.00023,7]
[348376998,1736482239007,-14457.36455187,0.00023,7]
[348377000,1736482239019,-684.29268817,0.00023,7]
[348377002,1736482239031,-12736.46300026,0.00023,7]
[348377005,1736482239041,-1426.95608211,0.00023,7]
[348377007,1736482239053,-2910.24432196,0.00023,7]
[348377086,1736482240558,-597.95323649,0.00023,7]
[348377087,1736482240611,-1345.81270731,0.00023,7]
[348377311,1736482243474,-500.0,0.00022815,2]
[348377312,1736482243483,-933.507,0.00023,7]
[348377748,1736482974018,163.572307,0.00013973,2]
[348377749,1736483154136,-302.48582854,0.00019,2]
[348377750,1736483154163,-56.89125208,0.0001919,2]
[348377752,1736483243094,-689.27562152,0.000209,2]
[348377753,1736483244104,-11.68152819,0.000209,2]
[348377754,1736483244128,-1061.6477187,0.00021805,2]
[348377755,1736483244151,-799.62,0.00022,2]
[348377756,1736483244174,-151.0,0.00022,2]
[348377757,1736483244196,-181.0,0.00022,2]
[348377758,1736483244217,-224.90853551,0.00022152,2]
[348377759,1736483247092,-3125.66244279,0.00022152,2]
[348377760,1736483247116,-576.057,0.000222,2]
[348377761,1736483247276,-163.572307,0.00022759,2]
[348377762,1736483247299,-300.0,0.00022812,2]
[348377763,1736483247323,-500.0,0.00022813,2]
[348377764,1736483247348,-274.67281582,0.00022813,2]
[348377766,1736483299114,2783.8836902,0.000125,2]
[348377768,1736483350109,-419.98458086,0.00017,7]
[348377769,1736483350129,-2487.591066,0.000189,2]
[348377770,1736483351105,-75.70429413,0.000189,2]
[348377771,1736483351126,-151.64560958,0.00019,2]
[348377772,1736483351152,-429.08051872,0.00020712,2]
[348377839,1736483432849,-38.22424775,0.00020712,2]
[348377841,1736483432859,-182.0,0.00022,2]
[348377843,1736483432872,-250.10857684,0.00022699,8]
[348377845,1736483432882,-500.0,0.00022813,3]
[348377847,1736483432892,-500.0,0.00022813,3]
[348377849,1736483432901,-500.0,0.00022814,3]
[348377851,1736483432910,-500.0,0.00022814,3]
[348377853,1736483432919,-503.64926491,0.00022814,3]
[348377855,1736483432928,-500.0,0.00022814,3]
[348377857,1736483432937,-500.0,0.00022814,3]
[348377859,1736483432946,-502.85372471,0.00022814,3]
[348377861,1736483432955,-505.86872335,0.00022814,3]
[348377863,1736483432964,-500.0,0.00022814,3]
[348377865,1736483432973,-500.84078379,0.00022814,3]
[348377867,1736483432982,-500.0,0.00022814,3]
[348377870,1736483432997,-334.75838495,0.00022814,3]
[348377872,1736483433010,-500.0,0.00022814,2]
[348377874,1736483433020,-500.0,0.00022814,3]
[348377876,1736483433030,-3776.36,0.00022814,3]
[348377878,1736483433040,-500.0,0.00022814,3]
[348377880,1736483433050,-500.0,0.00022814,2]
[348377882,1736483433059,-500.0,0.00022814,2]
[348377884,1736483433069,-500.0,0.00022814,2]
[348377886,1736483433079,-510.57870081,0.00022814,2]
[348377888,1736483433088,-269.73417816,0.00022814,2]
[348377891,1736483433100,-230.26582184,0.00022814,2]
[348377893,1736483433110,-448.39724032,0.00022814,2]
[348377894,1736483433120,-376.64049445,0.00022814,2]
[348377895,1736483433129,-500.0,0.00022814,2]
[348377896,1736483433138,-170.76423017,0.00022814,2]
[348377897,1736483433148,-500.0,0.00022814,2]
[348377898,1736483433157,-500.0,0.00022814,2]
[348377899,1736483433167,-117.89421388,0.00022814,2]
[348377900,1736483433179,-382.10578612,0.00022814,2]
[348377901,1736483433189,-500.0,0.00022814,2]
[348377902,1736483433199,-500.0,0.00022814,2]
[348377903,1736483433218,-403.19488991,0.00022814,2]
[348377904,1736483433232,-258.76,0.00022814,3]
[348377905,1736483433247,-321.75,0.00022814,3]
[348377906,1736483433261,-500.0,0.00022814,3]
[348377907,1736483433273,-443.08,0.00022814,3]
[348377908,1736483433286,-233.48,0.00022814,3]
[348377909,1736483433300,-153.38169485,0.00022814,3]
[348377910,1736483433312,-288.2268531,0.00022814,3]
[348377911,1736483433323,-8.99489269,0.00022815,2]
[348378024,1736483438590,-159.45810731,0.00022815,2]
[348378025,1736483438603,-500.0,0.00022815,3]
[348378026,1736483438615,-500.0,0.00022815,3]
[348378027,1736483438626,-9389.91363771,0.00022815,3]
[348378048,1736483440812,-2134.42636229,0.00022815,3]
[348378049,1736483440825,-500.0,0.00022815,3]
[348378050,1736483440836,-500.0,0.00022815,3]
[348378051,1736483440847,-500.0,0.00022816,3]
[348378052,1736483440859,-1234.82,0.00022816,3]
[348378053,1736483440870,-921.41,0.00022817,3]
[348378054,1736483440882,-265.35,0.00022848,2]
[348378055,1736483440893,-192.26779969,0.00022999,3]
[348378056,1736483440904,-353.74800741,0.00022999,3]
[348378057,1736483440915,-555.08892709,0.00022999,3]
[348378058,1736483440927,-500.0,0.00022999,3]
[348378059,1736483440938,-500.0,0.00022999,3]
[348378060,1736483440948,-500.0,0.00022999,3]
[348378061,1736483440958,-470.37893954,0.00022999,3]
[348378062,1736483440968,-500.0,0.00022999,3]
[348378063,1736483440978,-500.0,0.00022999,3]
[348378064,1736483440989,-500.0,0.00022999,3]
[348378065,1736483441002,-471.32457676,0.00022999,3]
[348378066,1736483441012,-348.6547202,0.00022999,3]
[348378067,1736483441022,-500.0,0.00022999,3]
[348378068,1736483441033,-4507.00649742,0.00023,7]
[348378069,1736483441044,-4000.0,0.00023,4]
[348378070,1736483441055,-500.38603444,0.00023,2]
[348378071,1736483441066,-2154.71378159,0.00023,2]
[348378072,1736483441077,-299.92435357,0.00023012,3]
[348378079,1736483588783,247.64492638,0.00014998,2]
[348378080,1736483588805,150.42171887,0.00014998,2]
[348378081,1736483589008,398.06664525,0.00014992,2]
[348378082,1736483589425,398.06664525,0.00014999,2]
[348378083,1736483647851,2483.44499063,0.00014988,2]
[348378084,1736483647887,10042.96282256,0.00014988,2]
[348378085,1736483648124,9957.03717744,0.00014999,2]
[348378086,1736483648158,2569.37063575,0.00014999,2]
[348378087,1736483648433,12526.40781319,0.0001499,2]
[348378088,1736483828092,163.765121,0.00013973,2]
[348378090,1736484339139,-542.93870919,0.000209,2]
[348378091,1736484339160,-601.823,0.0002186,2]
[348378092,1736484339181,-923.7051708,0.00021945,2]
[348378093,1736484339202,-300.0,0.00021999,2]
[348378094,1736484339222,-3549.45725917,0.00021999,2]
[348378095,1736484436105,-300.0,0.00021999,2]
[348378096,1736484436127,-150.0,0.00021999,2]
[348378097,1736484439085,-85.0,0.00021999,2]
[348378098,1736484439108,-176.58081317,0.00022,7]
[348378099,1736484440470,-747.13072359,0.00022,7]
[348378100,1736484445086,-427.84600523,0.00022,7]
[348378101,1736484446100,-5519.41542885,0.00022,7]
[348378102,1736484454165,-1844.72522225,0.00022,7]
[348378104,1736484571121,-490.0,0.000199,2]
[348378243,1736484637927,-56.95922324,0.000199,2]
[348378245,1736484637937,-4110.65082098,0.00022,7]
[348378247,1736484637946,-165.76829214,0.00022007,3]
[348378249,1736484637955,-500.0,0.00022007,3]
[348378251,1736484637965,-500.0,0.00022007,3]
[348378253,1736484637974,-6522.15234275,0.00022008,2]
[348379029,1736484645872,-59.33827851,0.00022007,2]
[348379583,1736484706710,163.872696,0.00013973,2]
[348379584,1736484724067,1359.63168393,0.00014995,2]
[348379585,1736484724334,1359.63168393,0.00014993,2]
[348379586,1736484724605,1359.63168393,0.00014986,2]
[348379592,1736485544122,-604.32756425,0.00019908,2]
[348379593,1736485544147,-1882.89253104,0.00020704,2]
[348379594,1736485633098,-372.3194025,0.00020704,2]
[348379595,1736485637991,218.970628,0.00013973,2]
[348379596,1736485641093,-218.970628,0.00020447,2]
[348379597,1736485641114,-1056.78806646,0.00020704,2]
[348379598,1736485641134,-173.869589,0.00021343,2]
[348379599,1736485641155,-1910.7403283,0.00021457,2]
[348379600,1736485641177,-2402.40024329,0.00021574,2]
[348379601,1736485647121,-1580.25109801,0.00021574,2]
[348379602,1736485647143,-1031.22348528,0.00021659,2]
[348379603,1736485654100,-110.72651472,0.00021659,2]
[348379604,1736485654123,-600.59,0.0002186,2]
[348379605,1736485654144,-41.81977872,0.0002236,2]
[348379606,1736485755132,-332.86084485,0.00019559,2]
[348379643,1736485832265,-125.50100546,0.00019559,2]
[348379644,1736485832278,-3312.0,0.00022361,4]
[348379645,1736485832289,-300.0,0.00022555,2]
[348379646,1736485832301,-500.0,0.00022556,3]
[348379647,1736485832311,-649.900688,0.00022556,3]
[348379648,1736485832321,-511.03947294,0.00022556,3]
[348379649,1736485832331,-507.37606641,0.00022556,3]
[348379650,1736485832343,-500.0,0.00022556,3]
[348379651,1736485832353,-500.0,0.00022556,3]
[348379652,1736485832362,-3714.51,0.00022556,3]
[348379653,1736485832372,-500.0,0.00022556,3]
[348379654,1736485832383,-500.0,0.00022556,3]
[348379655,1736485832394,-500.0,0.00022556,3]
[348379656,1736485832404,-19.85623827,0.00022556,3]
[348379657,1736485832494,-149.71437193,0.00022556,3]
[348379995,1736485843220,-330.4293898,0.00022556,3]
[348379997,1736485843229,-91.1306102,0.00022653,2]
[348380275,1736485846131,-408.8693898,0.00022653,2]
[348380277,1736485846140,-500.0,0.00022653,3]
[348380279,1736485846150,-500.0,0.00022653,3]
[348380281,1736485846159,-548.04202417,0.00022653,3]
[348380283,1736485846168,-500.0,0.00022653,3]
[348380285,1736485846177,-160.0,0.00022654,3]
[348380287,1736485846186,-597.31885819,0.00022659,2]
[348380289,1736485846195,-235.45833527,0.00022711,2]
[348380291,1736485846205,-1000.0,0.0002279,2]
[348380293,1736485846214,-235.45833521,0.00022792,2]
[348380295,1736485846223,-1000.0,0.00022798,2]
[348380297,1736485846232,-500.0,0.00022809,2]
[348380298,1736485846242,-500.0,0.00022809,2]
[348380300,1736485846251,-500.0,0.00022809,2]
[348380302,1736485846260,-500.0,0.00022809,2]
[348380304,1736485846269,-256.31990274,0.00022809,2]
[348380306,1736485846278,-601.60340996,0.00022809,2]
[348380308,1736485846287,-170.06247486,0.00022809,2]
[348380310,1736485846296,-500.0,0.0002281,3]
[348380312,1736485846306,-500.0,0.0002281,3]
[348380314,1736485846315,-500.0,0.0002281,3]
[348380316,1736485846324,-168.644,0.00022811,2]
[348380318,1736485846333,-598.11,0.00022811,3]
[348380320,1736485846344,-500.0,0.00022811,3]
[348380322,1736485846356,-517.08189234,0.00022811,3]
[348380324,1736485846365,-221.76154267,0.00022811,3]
[348380326,1736485846374,-500.0,0.00022811,3]
[348380328,1736485846383,-515.78573004,0.00022811,3]
[348380330,1736485846393,-500.0,0.00022811,3]
[348380332,1736485846403,-500.0,0.00022811,3]
[348380334,1736485846412,-200.07564643,0.00022811,3]
[348380336,1736485846422,-677.06683258,0.00022813,3]
[348381387,1736486746143,-305.57456687,0.00020711,2]
[348381388,1736486746169,-266.58681522,0.0002186,2]
[348381390,1736486841100,-588.653,0.0002186,2]
[348381391,1736486841122,-176.59375146,0.000219,2]
[348381392,1736486841144,-300.0,0.00021998,2]
[348381393,1736486841166,-500.0,0.00021999,2]
[348381394,1736486841189,-274.67281582,0.00021999,2]
[348381395,1736486841210,-500.0,0.00021999,3]
[348381396,1736486841234,-500.0,0.00021999,3]
[348381397,1736486841258,-2463.33222414,0.00021999,3]
[348381398,1736486845101,-695.66168871,0.00021999,3]
[348381399,1736486846246,-400.74608715,0.00021999,3]
[348381400,1736486846271,-500.0,0.00021999,3]
[348381401,1736486846296,-500.0,0.00021999,3]
[348381402,1736486846320,-500.0,0.00021999,3]
[348381403,1736486846343,-500.0,0.00021999,3]
[348381404,1736486846366,-203.17452615,0.00021999,2]
[348381405,1736486897305,265.24965738,0.000125,2]
[348381406,1736486962117,-151.64560958,0.00019,2]
[348381407,1736486962140,-665.07584918,0.00019899,2]
[348381408,1736486987192,13.46839689,0.00013973,2]
[348381409,1736486987229,200.03707611,0.00013973,2]
[348381474,1736487032295,-19.39634298,0.00019899,2]
[348381475,1736487032306,-213.505473,0.00020447,2]
[348381476,1736487032315,-270.15241123,0.00021889,8]
[348381651,1736487941104,-500.0,0.00018966,2]
[348381652,1736487941125,-637.2943645,0.00019789,2]
[348381653,1736487941149,-1081.6477187,0.0002085,2]
[348381654,1736487941169,-573.24965809,0.00021158,2]
[348381655,1736487941188,-2591.15612216,0.00021236,2]
[348381657,1736488025110,-759.41485624,0.00021236,2]
[348381658,1736488025132,-589.278,0.0002167,2]
[348381659,1736488025154,-155.7184239,0.00021726,2]
[348381660,1736488025174,-262.122324,0.00021726,2]
[348381661,1736488025195,-214.7830993,0.00021726,2]
[348381662,1736488025218,-214.7830993,0.00021726,2]
[348381663,1736488025239,-154.51953251,0.000219,2]
[348381664,1736488025260,-300.0,0.00021972,2]
[348381665,1736488025282,-2847.17972986,0.00021972,2]
[348381666,1736488025311,-936.82027014,0.00021972,2]
[348381667,1736488025332,-411.11157055,0.00021973,2]
[348381668,1736488025353,-500.0,0.00021973,2]
[348381669,1736488025373,-537.72519612,0.00021973,2]
[348381670,1736488025395,-125.77510473,0.00021973,2]
[348381671,1736488031094,-374.22489527,0.00021973,2]
[348381672,1736488031116,-75.77510473,0.00021973,2]
[348381673,1736488035094,-425.76486458,0.00021973,2]
[348381674,1736488035118,-209.08583398,0.00021998,3]
[348381675,1736488035143,-107.13312154,0.00021998,3]
[348381676,1736488043098,-261.58081317,0.00021998,3]
[348381677,1736488046089,-131.28606529,0.00021998,3]
[348381678,1736488046115,-296.55993994,0.00021998,3]
[348381679,1736488159140,-490.0,0.00019873,2]
[348381680,1736488173466,200.408217,0.00013973,2]
[348381681,1736488174114,-98.196243,0.00019873,2]
[348381682,1736488174138,-68.23417943,0.00020447,2]
[348381702,1736488232581,-132.17403757,0.00020447,2]
[348381703,1736488232591,-300.0,0.00021997,2]
[348381704,1736488232600,-500.0,0.00021998,3]
[348381705,1736488232610,-500.0,0.00021998,2]
[348381707,1736488232619,-500.0,0.00021998,3]
[348381708,1736488232630,-3411.42,0.00021998,3]
[348381710,1736488232639,-500.0,0.00021998,3]
[348381712,1736488232650,-448.26,0.00021998,3]
[348381714,1736488232659,-500.0,0.00021998,3]
[348381715,1736488232669,-929.47342937,0.00021999,5]
[348381716,1736488232678,-624.30340965,0.00021999,3]
[348381718,1736488232687,-500.0,0.00021999,3]
[348381719,1736488232698,-498.65229059,0.00021999,3]
[348381720,1736488232708,-500.0,0.00021999,3]
[348381722,1736488232717,-649.64,0.00021999,3]
[348381724,1736488232727,-502.46290777,0.00021999,3]
[348381726,1736488232737,-10583.98,0.00021999,3]
[348381729,1736488232757,-500.0,0.00021999,3]
[348381731,1736488232766,-151.0,0.00021999,7]
[348381733,1736488232776,-151.0,0.00021999,7]
[348381735,1736488232786,-151.0,0.00021999,7]
[348381737,1736488232796,-17445.60892505,0.00022,2]
[348381978,1736488240718,-889.24055184,0.00022,2]
[348382061,1736489136237,-1037.68291223,0.000199,8]
[348382062,1736489136258,-605.68471305,0.000199,2]
[348382063,1736489136279,-1133.46524683,0.00020696,2]
[348382065,1736489231098,-1787.53475317,0.00020696,2]
[348382066,1736489231119,-816.99247125,0.00020986,2]
[348382067,1736489238127,-106.71269955,0.00020986,2]
[348382068,1736489238150,-617.58,0.0002167,2]
[348382069,1736489238173,-187.41717715,0.00021898,2]
[348382070,1736489238196,-300.0,0.00021908,2]
[348382071,1736489238218,-4524.56199936,0.00021909,2]
[348382072,1736489239143,-858.22899228,0.00021909,2]
[348382073,1736489243100,-752.02104611,0.00021909,2]
[348382074,1736489329176,207.878468,0.00013973,2]
[348382075,1736489366109,-514.74342365,0.00019809,2]
[348382076,1736489366135,-500.0,0.0002,30]
[348382077,1736489366157,-131.68699878,0.00020447,2]
[348382149,1736489440707,-76.19146922,0.00020447,2]
[348382150,1736489440717,-173.869589,0.00020724,2]
[348382151,1736489440726,-163.99003005,0.00021898,2]
[348382152,1736489440735,-500.0,0.00021973,2]
[348382153,1736489440744,-300.0,0.00021996,2]
[348382154,1736489440754,-500.0,0.00021997,2]
[348382155,1736489440764,-500.0,0.00021997,3]
[348382156,1736489440773,-500.0,0.00021997,3]
[348382157,1736489440783,-453.73,0.00021997,3]
[348382158,1736489440792,-500.0,0.00021997,3]
[348382159,1736489440802,-500.0,0.00021997,3]
[348382160,1736489440811,-500.0,0.00021997,3]
[348382161,1736489440821,-495.62,0.00021997,3]
[348382162,1736489440831,-500.0,0.00021997,3]
[348382163,1736489440840,-500.0,0.00021997,3]
[348382164,1736489440849,-500.0,0.00021997,3]
[348382165,1736489440858,-106.84295513,0.00021997,3]
[348382470,1736490318900,195.487499,0.00013973,2]
[348382472,1736490350102,-445.02047139,0.00019897,2]
[348382473,1736490350124,-195.487499,0.00020447,2]
[348382474,1736490350146,-152.1205607,0.00020742,2]
[348382476,1736490430109,-300.0,0.00020599,2]
[348382477,1736490430136,-401.29762445,0.000206,2]
[348382478,1736490439122,-5346.55379988,0.000206,2]
[348382479,1736490452125,-2924.61292009,0.000206,2]
[348382481,1736490552116,-518.37226399,0.000189,2]
[348382482,1736490552138,-151.64560958,0.00019,2]
[348382483,1736490552161,-464.73671468,0.000206,5]
[348382484,1736490552184,-300.0,0.0002074,2]
[348382485,1736490552206,-500.0,0.00020741,2]
[348382486,1736490552229,-500.0,0.00020741,2]
[348382487,1736490552253,-500.0,0.00020741,2]
[348382488,1736490552275,-500.0,0.00020741,2]
[348382489,1736490552297,-500.0,0.00020741,2]
[348382490,1736490552318,-500.0,0.00020741,2]
[348382491,1736490552341,-489.99208685,0.00020741,2]
[348382492,1736490552362,-500.0,0.00020741,2]
[348382493,1736490552382,-500.0,0.00020741,2]
[348382494,1736490552406,-649.50076291,0.00020741,2]
[348382495,1736490552428,-392.00725285,0.00020741,2]
[348382496,1736490552450,-500.0,0.00020741,2]
[348382497,1736490552475,-500.0,0.00020741,2]
[348382498,1736490552499,-500.0,0.00020741,2]
[348382499,1736490552523,-500.0,0.00020741,2]
[348382500,1736490552546,-500.0,0.00020741,2]
[348382501,1736490552567,-500.0,0.00020741,2]
[348382502,1736490552589,-204.85797554,0.00020741,2]
[348382503,1736490552611,-1758.6197676,0.00020742,2]
[348382504,1736490552633,-160.0,0.00020868,3]
[348382505,1736490552654,-339.16447391,0.000209,2]
[348382544,1736490632790,-288.31452609,0.000209,2]
[348382546,1736490632800,-3982.6513413,0.00021166,2]
[348382548,1736490632810,-160.0,0.00021684,4]
[348382550,1736490632820,-164.14274474,0.00021684,5]
[348382552,1736490632830,-11543.77238403,0.00021766,2]
[348382554,1736490632839,-285.0680124,0.000218,2]
[348382556,1736490632849,-164.976508,0.00021895,2]
[348382558,1736490632859,-209.921497,0.00021895,2]
[348382560,1736490632868,-816.442837,0.00021895,2]
[348382562,1736490632877,-816.442837,0.00021895,2]
[348382564,1736490632886,-816.442837,0.00021896,2]
[348382566,1736490632895,-816.442837,0.00021896,2]
[348382568,1736490632905,-232.36835734,0.000219,5]
[348382569,1736490632915,-5935.74143266,0.000219,2]
[348382570,1736490632927,-4140.96075733,0.000219,2]
[348382571,1736490632936,-153.436355,0.000219,2]
[348382572,1736490632946,-185.358033,0.000219,2]
[348382573,1736490632956,-185.358033,0.000219,2]
[348382574,1736490632966,-179.034048,0.000219,2]
[348382575,1736490632975,-816.442837,0.000219,2]
[348382576,1736490632985,-816.442837,0.000219,2]
[348382577,1736490632994,-181.9870577,0.00021917,3]
[348382578,1736490633004,-500.0,0.00021917,3]
[348382579,1736490633014,-500.0,0.00021917,3]
[348382580,1736490633023,-500.0,0.00021917,3]
[348382581,1736490633033,-500.0,0.00021917,3]
[348382582,1736490633043,-505.57879702,0.00021917,3]
[348382583,1736490633053,-500.0,0.00021917,3]
[348382584,1736490633064,-500.0,0.00021917,3]
[348382585,1736490633075,-500.0,0.00021917,2]
[348382586,1736490633086,-500.0,0.00021917,3]
[348382587,1736490633096,-500.0,0.00021917,3]
[348382588,1736490633107,-442.94564879,0.00021917,3]
[348382589,1736490633117,-500.0,0.00021917,3]
[348382590,1736490633127,-500.0,0.00021917,3]
[348382591,1736490633137,-500.0,0.00021917,3]
[348382592,1736490633147,-500.0,0.00021917,3]
[348382593,1736490633157,-500.0,0.00021917,3]
[348382594,1736490633167,-3765.36,0.00021917,3]
[348382595,1736490633176,-500.0,0.00021917,3]
[348382596,1736490633185,-816.442837,0.00021917,2]
[348382597,1736490633195,-500.0,0.00021917,3]
[348382598,1736490633205,-816.442837,0.00021917,2]
[348382599,1736490633214,-500.0,0.00021917,3]
[348382600,1736490633224,-393.15704487,0.00021917,3]
[348382601,1736490633234,-500.0,0.00021917,3]
[348382602,1736490633243,-500.0,0.00021917,3]
[348382603,1736490633253,-159.169327,0.00021995,7]
[348382604,1736490633263,-153.46487,0.00021995,7]
[348382605,1736490633272,-500.0,0.00021996,3]
[348382606,1736490633282,-598.62,0.00021996,3]
[348382607,1736490633291,-501.56765298,0.00021996,2]
[348382608,1736490633301,-400.11509546,0.00021996,3]
[348382609,1736490633311,-504.68194227,0.00021996,3]
[348382610,1736490633321,-160.434294,0.00021996,7]
[348382611,1736490633331,-500.0,0.00021996,3]
[348382612,1736490633341,-500.0,0.00021996,3]
[348382613,1736490633351,-500.0,0.00021996,7]
[348382614,1736490633361,-155.095639,0.00021996,7]
[348382615,1736490633371,-185.358033,0.00021996,7]
[348382616,1736490633380,-185.358033,0.00021996,7]
[348382617,1736490633390,-516.56884451,0.00021996,3]
[348382618,1736490633400,-816.442837,0.00021996,2]
[348382619,1736490633410,-816.442837,0.00021996,2]
[348382620,1736490633420,-816.442837,0.00021996,2]
[348382621,1736490633430,-816.442837,0.00021996,2]
[348382622,1736490633439,-500.0,0.00021997,3]
[348382623,1736490633449,-10603.16,0.00021997,3]
[348382624,1736490633458,-185.358033,0.00021997,7]
[348382625,1736490633470,-185.358033,0.00021997,7]
[348382626,1736490633479,-185.358033,0.00021997,7]
[348382627,1736490633597,-185.358033,0.00021997,7]
[348382628,1736490633614,-500.0,0.00021997,3]
[348382629,1736490633624,-816.442837,0.00021997,2]
[348382630,1736490633635,-816.442837,0.00021997,2]
[348382631,1736490633644,-816.442837,0.00021997,2]
[348382632,1736490633655,-816.442837,0.00021997,2]
[348382633,1736490633664,-157.178688,0.00021998,7]
[348382634,1736490633674,-151.0,0.00021998,7]
[348382635,1736490633684,-151.0,0.00021998,7]
[348382636,1736490633693,-151.0,0.00021998,7]
[348382637,1736490633703,-252.751992,0.00021998,7]
[348382638,1736490633712,-500.0,0.00021998,3]
[348382639,1736490633721,-185.358033,0.00021998,7]
[348382640,1736490633731,-185.358033,0.00021998,7]
[348382641,1736490633740,-185.358033,0.00021998,7]
[348382642,1736490633749,-185.358033,0.00021998,7]
[348382643,1736490633758,-185.358033,0.00021998,7]
[348382644,1736490633768,-185.358033,0.00021998,7]
[348382645,1736490633777,-391.46223653,0.00021998,3]
[348382646,1736490633787,-500.0,0.00021998,3]
[348382647,1736490633796,-816.442837,0.00021998,2]
[348382648,1736490633806,-816.442837,0.00021998,2]
[348382649,1736490633816,-2000.0,0.00021998,2]
[348382650,1736490633825,-1370.22,0.00021998,3]
[348382651,1736490633834,-151.0,0.00021999,7]
[348382652,1736490633844,-151.0,0.00021999,7]
[348382653,1736490633853,-151.0,0.00021999,7]
[348382654,1736490633863,-926.88,0.00021999,3]
[348382655,1736490633872,-185.358033,0.00021999,7]
[348382656,1736490633881,-185.358033,0.00021999,7]
[348382657,1736490633890,-533.8087262,0.00021999,3]
[348382658,1736490633900,-816.442837,0.00021999,2]
[348382659,1736490633910,-816.442839,0.00021999,2]
[348382660,1736490633920,-6078.19245298,0.00022,2]
[348382661,1736490633929,-5004.06,0.00022,2]
[348382662,1736490633939,-7550.0,0.00022,2]
[348382663,1736490633949,-151.0,0.00022,7]
[348382664,1736490633958,-151.0,0.00022,7]
[348382665,1736490633968,-151.0,0.00022,7]
[348382666,1736490633977,-151.0,0.00022,7]
[348382667,1736490633987,-165.751684,0.00022,7]
[348382668,1736490633997,-151.0,0.00022,2]
[348382669,1736490634007,-185.358033,0.00022,7]
[348382670,1736490634016,-185.358033,0.00022,7]
[348382671,1736490634026,-185.358033,0.00022,7]
[348382672,1736490634036,-185.358024,0.00022,7]
[348382673,1736490634046,-4909.92452856,0.00022,2]
[348382674,1736490634056,-166.0,0.00022,2]
[348382675,1736490634067,-9147.18627276,0.00022,2]
[348382676,1736490634134,-500.0,0.00022,2]
[348382680,1736490638609,-244.9842195,0.00021899,2]
[348382681,1736490638621,-2000.0,0.00021998,2]
[348382682,1736490638632,-471.15564301,0.00021999,2]
[348382683,1736490638642,-240.16375577,0.00021999,2]
[348382684,1736490638653,-267.74081974,0.00021999,2]
[348382685,1736490638662,-10013.85354653,0.00022,2]
[348382686,1736490638671,-285.0680124,0.00022011,2]
[348382687,1736490638680,-345.76645736,0.00022088,2]
[348382688,1736490638690,-169.4446239,0.00022143,2]
[348382689,1736490638699,-500.0,0.00022191,2]
[348382690,1736490638708,-500.0,0.00022191,3]
[348382691,1736490638717,-500.0,0.00022191,3]
[348382692,1736490638727,-500.0,0.00022191,3]
[348382693,1736490638736,-500.0,0.00022191,3]
[348382694,1736490638745,-3595.93645774,0.00022191,3]
[348382695,1736490638757,-169.42354226,0.00022191,3]
[348382696,1736490638766,-500.0,0.00022191,3]
[348382697,1736490638775,-284.65645714,0.00022191,3]
[348383143,1736490643655,-238.8334181,0.00021899,2]
[348383144,1736490643666,-383.64232502,0.00021997,3]
[348383145,1736490643799,-2398.56613674,0.00021997,3]
[348383200,1736491356430,184.335627,0.00013973,2]
[348383202,1736491539129,-500.0,0.00018966,2]
[348383203,1736491539149,-558.01296416,0.000199,2]
[348383204,1736491539169,-184.335627,0.00020447,2]
[348383205,1736491539189,-626.918,0.0002108,2]